fUST/lending_fUST_20250312
["ID","MTS","AMOUNT","RATE_DAILY","PERIOD"]
[355959490,1741734687036,-152.65905015,0.00021917,2]
[355959491,1741734687045,-1290.07,0.00021917,2]
[355959492,1741734687055,-4026.0,0.00021917,2]
[355959493,1741734687064,-4026.0,0.00021917,2]
[355959494,1741734687074,-4026.0,0.00021917,2]
[355959495,1741734687084,-4026.0,0.00021917,2]
[355959496,1741734687093,-4026.0,0.00021917,2]
[355959497,1741734687103,-4026.0,0.00021917,2]
[355959498,1741734687113,-4026.0,0.00021917,2]
[355959499,1741734687122,-4026.0,0.00021917,2]
[355959500,1741734687132,-4026.0,0.00021917,2]
[355959501,1741734687142,-4026.0,0.00021917,2]
[355959502,1741734687152,-4026.0,0.00021917,2]
[355959503,1741734687162,-4026.0,0.00021917,2]
[355959504,1741734687172,-4026.0,0.00021917,2]
[355959505,1741734687182,-4026.0,0.00021917,2]
[355959506,1741734687192,-4026.0,0.00021917,2]
[355959507,1741734687202,-4026.0,0.00021917,2]
[355959508,1741734687211,-4026.0,0.00021917,2]
[355959509,1741734687221,-4026.0,0.00021917,2]
[355959510,1741734687230,-4026.0,0.00021917,2]
[355959511,1741734687240,-4040.74074291,0.00021917,2]
[355959512,1741734687249,-379.03028536,0.00021917,2]
[355959513,1741734687259,-500.0,0.00021917,2]
[355959514,1741734687270,-4997.1,0.00021917,2]
[355959515,1741734687279,-500.0,0.00021917,2]
[355959516,1741734687288,-500.0,0.00021917,2]
[355959517,1741734687298,-500.0,0.00021917,2]
[355959518,1741734687308,-1292.35,0.00021917,2]
[355959519,1741734687318,-605.24,0.00021917,2]
[355959520,1741734687327,-1188.37,0.00021917,2]
[355959521,1741734687338,-604.97,0.00021917,2]
[355959522,1741734687347,-153.64937964,0.00021917,2]
[355959523,1741734687357,-500.0,0.00021917,2]
[355959524,1741734687367,-630.73,0.00021917,2]
[355959525,1741734687377,-1994.33,0.00021917,2]
[355959526,1741734687387,-892.18,0.00021917,2]
[355959527,1741734687397,-755.13,0.00021917,2]
[355959528,1741734687407,-545.99,0.00021917,2]
[355959529,1741734687417,-1156.57,0.00021917,2]
[355959530,1741734687427,-520.62,0.00021917,2]
[355959531,1741734687437,-1451.2,0.00021917,2]
[355959532,1741734687447,-500.0,0.00021917,2]
[355959533,1741734687457,-621.0,0.00021917,2]
[355959534,1741734687467,-1784.22,0.00021917,2]
[355959535,1741734687477,-500.0,0.00021917,2]
[355959536,1741734687487,-500.0,0.00021917,2]
[355959537,1741734687498,-500.0,0.00021917,2]
[355959538,1741734687508,-1214.06,0.00021917,2]
[355959539,1741734687518,-868.24,0.00021917,2]
[355959540,1741734687528,-500.0,0.00021917,2]
[355959541,1741734687538,-1227.37,0.00021917,2]
[355959542,1741734687547,-728.17,0.00021917,2]
[355959543,1741734687558,-1170.42,0.00021917,2]
[355959544,1741734687567,-500.0,0.00021917,2]
[355959545,1741734687578,-5008.44,0.00021917,2]
[355959546,1741734687588,-500.0,0.00021917,2]
[355959547,1741734687598,-1568.17,0.00021917,2]
[355959548,1741734687608,-751.65,0.00021917,2]
[355959549,1741734687618,-500.0,0.00021917,2]
[355959550,1741734687628,-595.41,0.00021917,2]
[355959551,1741734687638,-1467.72,0.00021917,2]
[355959552,1741734687648,-653.8,0.00021917,2]
[355959553,1741734687658,-4529.09,0.00021917,2]
[355959554,1741734687668,-500.0,0.00021917,2]
[355959555,1741734687678,-1000.0,0.00021917,7]
[355959556,1741734687688,-500.0,0.00021917,2]
[355959557,1741734687697,-500.0,0.00021917,2]
[355959558,1741734687707,-1488.91,0.00021917,2]
[355959559,1741734687717,-2429.43,0.00021917,2]
[355959560,1741734687727,-621.67,0.00021917,2]
[355959561,1741734687737,-920.31,0.00021917,2]
[355959562,1741734687748,-500.0,0.00021917,2]
[355959563,1741734687759,-500.0,0.00021917,2]
[355959564,1741734687768,-500.0,0.00021917,2]
[355959565,1741734687778,-500.0,0.00021917,2]
[355959566,1741734687789,-500.0,0.00021917,2]
[355959567,1741734687799,-500.0,0.00021917,2]
[355959568,1741734687809,-500.0,0.00021917,2]
[355959569,1741734687819,-500.0,0.00021917,2]
[355959570,1741734687830,-500.0,0.00021917,2]
[355959571,1741734687840,-500.0,0.00021917,2]
[355959572,1741734687850,-500.0,0.00021917,2]
[355959573,1741734687859,-500.0,0.00021917,2]
[355959574,1741734687868,-500.0,0.00021917,2]
[355959575,1741734687878,-500.0,0.00021917,2]
[355959576,1741734687888,-500.0,0.00021917,2]
[355959577,1741734687898,-500.0,0.00021917,2]
[355959578,1741734687908,-500.0,0.00021917,2]
[355959579,1741734687917,-500.0,0.00021917,2]
[355959580,1741734687927,-500.0,0.00021917,2]
[355959581,1741734687937,-500.0,0.00021917,2]
[355959582,1741734687947,-500.0,0.00021917,2]
[355959583,1741734687957,-500.0,0.00021917,2]
[355959584,1741734687967,-500.0,0.00021917,2]
[355959585,1741734687977,-500.0,0.00021917,2]
[355959586,1741734687987,-500.0,0.00021917,2]
[355959587,1741734687998,-500.0,0.00021917,2]
[355959588,1741734688010,-500.0,0.00021917,2]
[355959589,1741734688020,-500.0,0.00021917,2]
[355959590,1741734688030,-500.0,0.00021917,2]
[355959591,1741734688039,-500.0,0.00021917,2]
[355959592,1741734688049,-500.0,0.00021917,2]
[355959593,1741734688059,-957.86,0.00021917,2]
[355959594,1741734688069,-500.0,0.00021917,2]
[355959595,1741734688078,-774.89157162,0.00021917,2]
[355959596,1741734688088,-680.0,0.00021917,2]
[355959597,1741734688097,-680.0,0.00021917,2]
[355959598,1741734688107,-680.0,0.00021917,2]
[355959599,1741734688117,-680.0,0.00021917,2]
[355959600,1741734688127,-680.0,0.00021917,2]
[355959601,1741734688137,-680.0,0.00021917,2]
[355959602,1741734688147,-680.0,0.00021917,2]
[355959603,1741734688157,-680.0,0.00021917,2]
[355959604,1741734688166,-680.0,0.00021917,2]
[355959605,1741734688176,-680.0,0.00021917,2]
[355959606,1741734688186,-680.0,0.00021917,2]
[355959607,1741734688196,-680.0,0.00021917,2]
[355959608,1741734688206,-680.0,0.00021917,2]
[355959609,1741734688216,-680.0,0.00021917,2]
[355959610,1741734688226,-680.0,0.00021917,2]
[355959611,1741734688236,-680.0,0.00021917,2]
[355959612,1741734688248,-680.0,0.00021917,2]
[355959613,1741734688262,-680.0,0.00021917,2]
[355959614,1741734688272,-680.0,0.00021917,2]
[355959615,1741734688282,-697.44723385,0.00021917,2]
[355959616,1741734688292,-150.33,0.00021917,2]
[355959617,1741734688539,-150.33,0.00021917,2]
[355959618,1741734688561,-150.33,0.00021917,2]
[355959619,1741734688571,-281.26397709,0.00021917,2]
[355959620,1741734688581,-150.33,0.00021917,2]
[355959621,1741734688590,-500.0,0.00021917,2]
[355959622,1741734688600,-698.72283656,0.00021917,2]
[355959623,1741734688610,-1110.2,0.00021917,2]
[355959624,1741734688619,-150.33,0.00021917,2]
[355959625,1741734688630,-500.0,0.00021917,2]
[355959626,1741734688640,-500.0,0.00021917,2]
[355959627,1741734688650,-500.0,0.00021917,2]
[355959628,1741734688659,-500.0,0.00021917,2]
[355959629,1741734688669,-500.0,0.00021917,2]
[355959630,1741734688679,-500.0,0.00021917,2]
[355959631,1741734688688,-500.0,0.00021917,2]
[355959632,1741734688698,-500.0,0.00021917,2]
[355959633,1741734688708,-500.0,0.00021917,2]
[355959634,1741734688718,-500.0,0.00021917,2]
[355959635,1741734688727,-500.0,0.00021917,2]
[355959636,1741734688737,-500.0,0.00021917,2]
[355959637,1741734688752,-500.0,0.00021917,2]
[355959638,1741734688762,-500.0,0.00021917,2]
[355959639,1741734688772,-532.22883877,0.00021917,2]
[355959640,1741734688782,-544.11,0.00021917,2]
[355959641,1741734688794,-159.30893771,0.00021917,2]
[355959642,1741734688804,-150.33,0.00021917,2]
[355959643,1741734688815,-150.33,0.00021917,2]
[355959644,1741734688826,-198.15636862,0.00021917,2]
[355959645,1741734688836,-500.0,0.00021917,2]
[355959646,1741734688846,-952.07,0.00021917,2]
[355959647,1741734688856,-576.21,0.00021917,2]
[355959648,1741734688866,-738.24,0.00021917,2]
[355959649,1741734688876,-2110.0,0.00021917,2]
[355959650,1741734688885,-2110.0,0.00021917,2]
[355959651,1741734688895,-2110.0,0.00021917,2]
[355959652,1741734688905,-2110.0,0.00021917,2]
[355959653,1741734688914,-2110.0,0.00021917,2]
[355959654,1741734688924,-2110.0,0.00021917,2]
[355959655,1741734688934,-2110.0,0.00021917,2]
[355959656,1741734688944,-9999.0,0.00021917,2]
[355959657,1741734688954,-2110.0,0.00021917,2]
[355959658,1741734688963,-2110.0,0.00021917,2]
[355959659,1741734688973,-2110.0,0.00021917,2]
[355959660,1741734688983,-2110.0,0.00021917,2]
[355959661,1741734688992,-2110.0,0.00021917,2]
[355959662,1741734689003,-853.84,0.00021917,2]
[355959663,1741734689014,-2110.0,0.00021917,2]
[355959664,1741734689024,-2110.0,0.00021917,2]
[355959665,1741734689033,-2110.0,0.00021917,2]
[355959666,1741734689043,-500.0,0.00021917,2]
[355959667,1741734689053,-2110.0,0.00021917,2]
[355959668,1741734689063,-2110.0,0.00021917,2]
[355959669,1741734689073,-2110.0,0.00021917,2]
[355959670,1741734689083,-2110.0,0.00021917,2]
[355959671,1741734689093,-2110.6053578,0.00021917,2]
[355959672,1741734689103,-544.34,0.00021917,2]
[355959673,1741734689113,-500.0,0.00021917,2]
[355959674,1741734689123,-500.0,0.00021917,2]
[355959675,1741734689132,-500.0,0.00021917,2]
[355959676,1741734689141,-677.1,0.00021917,2]
[355959677,1741734689151,-4842.64,0.00021917,2]
[355959678,1741734689161,-500.0,0.00021917,2]
[355959679,1741734689171,-500.0,0.00021917,2]
[355959680,1741734689181,-518.91,0.00021917,2]
[355959681,1741734689191,-4054.19,0.00021917,2]
[355959682,1741734689201,-866.55,0.00021917,2]
[355959683,1741734689211,-3046.16,0.00021917,2]
[355959684,1741734689221,-500.0,0.00021917,2]
[355959685,1741734689231,-376.229,0.00021918,2]
[355959686,1741734689241,-1000.0,0.00022,22]
[355959687,1741734689252,-50518.17441954,0.00022,2]
[355959688,1741734689263,-7711.75943139,0.00022,2]
[355959689,1741734689273,-293.58714176,0.00022,2]
[355959690,1741734689283,-150.0,0.00022,2]
[355959691,1741734689293,-2000.0,0.00022,4]
[355959692,1741734689303,-1142.28,0.00022028,2]
[355959693,1741734689313,-3772.17,0.00022028,2]
[355959694,1741734689323,-163381.79,0.00022028,2]
[355959695,1741734689334,-2671.58,0.00022028,2]
[355959696,1741734689344,-863.38,0.00022028,2]
[355959697,1741734689354,-5706.05,0.00022028,2]
[355959698,1741734689364,-500.0,0.00022028,2]
[355959699,1741734689374,-664.48,0.00022028,2]
[355959700,1741734689384,-500.0,0.00022028,2]
[355959701,1741734689394,-3577.81,0.00022028,2]
[355959702,1741734689404,-909.63,0.00022031,2]
[355959703,1741734689414,-500.0,0.00022031,2]
[355959704,1741734689424,-1219.12,0.00022031,2]
[355959705,1741734689434,-500.0,0.00022031,2]
[355959706,1741734689444,-500.0,0.00022031,2]
[355959707,1741734689454,-735.93,0.00022031,2]
[355959708,1741734689463,-613.95,0.00022031,2]
[355959709,1741734689474,-500.0,0.00022031,2]
[355959710,1741734689484,-500.0,0.00022031,2]
[355959711,1741734689493,-617.74,0.00022031,2]
[355959712,1741734689505,-500.0,0.00022031,2]
[355959713,1741734689515,-1157.79,0.00022031,2]
[355959714,1741734689525,-610.48,0.00022031,2]
[355959715,1741734689535,-500.0,0.00022031,2]
[355959716,1741734689544,-547.18,0.00022031,2]
[355959717,1741734689555,-500.0,0.00022031,2]
[355959718,1741734689564,-1437.26,0.00022031,2]
[355959719,1741734689574,-500.0,0.00022031,2]
[355959720,1741734689583,-559.53,0.00022031,2]
[355959721,1741734689594,-1184.99,0.00022031,2]
[355959722,1741734689604,-541.3,0.00022031,2]
[355959723,1741734689614,-500.0,0.00022031,2]
[355959724,1741734689623,-500.0,0.00022031,2]
[355959725,1741734689633,-500.0,0.00022031,2]
[355959726,1741734689643,-500.0,0.00022031,2]
[355959727,1741734689653,-500.0,0.00022031,2]
[355959728,1741734689662,-500.0,0.00022031,2]
[355959729,1741734689672,-233.08053321,0.00022031,2]
[355959730,1741734689682,-1059.92,0.00022031,2]
[355959731,1741734689692,-500.0,0.00022031,2]
[355959732,1741734689702,-677.01,0.00022031,2]
[355959733,1741734689712,-1053.17,0.00022031,2]
[355959734,1741734689721,-1149.09,0.00022031,2]
[355959735,1741734689731,-2390.45,0.00022031,2]
[355959736,1741734689742,-673.04,0.00022031,2]
[355959737,1741734689753,-500.0,0.00022031,2]
[355959738,1741734689763,-500.0,0.00022031,2]
[355959739,1741734689773,-1109.37,0.00022031,2]
[355959740,1741734689783,-1057.29,0.00022031,2]
[355959741,1741734689794,-725.09,0.00022031,2]
[355959742,1741734689804,-853.84,0.00022031,2]
[355959743,1741734689814,-536.23,0.00022031,2]
[355959744,1741734689824,-500.0,0.00022031,2]
[355959745,1741734689835,-740.86,0.00022031,2]
[355959746,1741734689844,-500.0,0.00022031,2]
[355959747,1741734689854,-500.0,0.00022035,2]
[355959748,1741734689863,-500.0,0.00022035,2]
[355959749,1741734689873,-527.54,0.00022035,2]
[355959750,1741734689883,-500.0,0.00022035,2]
[355959751,1741734689892,-504.98,0.00022035,2]
[355959752,1741734689902,-622.0,0.00022035,2]
[355959753,1741734689912,-500.0,0.00022035,2]
[355959754,1741734689921,-554.08,0.00022035,2]
[355959755,1741734689931,-2973.52,0.00022035,2]
[355959756,1741734689940,-601.0,0.00022035,2]
[355959757,1741734689950,-500.0,0.00022035,2]
[355959758,1741734689960,-691.82,0.00022035,2]
[355959759,1741734689970,-500.0,0.00022035,2]
[355959760,1741734689980,-500.0,0.00022035,2]
[355959761,1741734689990,-500.0,0.00022035,2]
[355959762,1741734690003,-500.0,0.00022035,2]
[355959763,1741734690013,-492.98441781,0.00022035,2]
[355959764,1741734690023,-500.0,0.00022035,2]
[355959765,1741734690032,-602.44,0.00022035,2]
[355959766,1741734690042,-500.0,0.00022035,2]
[355959767,1741734690052,-820.67,0.00022035,2]
[355959768,1741734690061,-500.0,0.00022035,2]
[355959769,1741734690071,-793.66,0.00022035,2]
[355959770,1741734690081,-590.49,0.00022035,2]
[355959771,1741734690091,-500.0,0.00022035,2]
[355959772,1741734690100,-500.0,0.00022035,2]
[355959773,1741734690110,-500.0,0.00022035,2]
[355959774,1741734690119,-535.91,0.00022035,2]
[355959775,1741734690130,-500.0,0.00022035,2]
[355959776,1741734690140,-500.0,0.00022035,2]
[355959777,1741734690150,-654.51,0.00022035,2]
[355959778,1741734690160,-864.43,0.00022035,2]
[355959779,1741734690170,-500.0,0.00022035,2]
[355959780,1741734690180,-1196.8,0.00022035,2]
[355959781,1741734690189,-920.25,0.00022035,2]
[355959782,1741734690199,-1396.49,0.00022035,2]
[355959783,1741734690209,-548.11,0.00022035,2]
[355959784,1741734690219,-647.17,0.00022035,5]
[355959785,1741734690228,-500.0,0.00022035,2]
[355959786,1741734690239,-500.0,0.00022035,2]
[355959787,1741734690250,-500.0,0.00022035,2]
[355959788,1741734690260,-500.0,0.00022035,2]
[355959789,1741734690270,-500.0,0.00022035,2]
[355959790,1741734690280,-627.98,0.00022035,2]
[355959791,1741734690290,-500.0,0.00022038,2]
[355959792,1741734690300,-500.0,0.00022038,2]
[355959793,1741734690310,-500.0,0.00022038,2]
[355959794,1741734690319,-728.06,0.00022038,2]
[355959795,1741734690329,-958.86,0.00022038,2]
[355959796,1741734690339,-1101.24,0.00022038,2]
[355959797,1741734690348,-987.72,0.00022038,2]
[355959798,1741734690358,-500.0,0.00022039,2]
[355959799,1741734690368,-500.0,0.00022039,2]
[355959800,1741734690378,-622.974372,0.00022039,2]
[355959801,1741734690388,-1782.88,0.00022039,2]
[355959802,1741734690397,-559.98,0.00022039,2]
[355959803,1741734690407,-640.92,0.00022039,2]
[355959804,1741734690416,-500.0,0.00022039,2]
[355959805,1741734690426,-578.46,0.00022039,2]
[355959806,1741734690437,-1913.04,0.00022039,2]
[355959807,1741734690447,-500.0,0.00022039,2]
[355959808,1741734690457,-220.57803277,0.00022039,2]
[355959809,1741734690468,-888.29,0.00022039,2]
[355959810,1741734690478,-748.42,0.00022039,2]
[355959811,1741734690488,-795.95141699,0.0002208,30]
[355959812,1741734690498,-3813.8235608,0.0002208,30]
[355959813,1741734690509,-289.63770001,0.000221,2]
[355959814,1741734690518,-500.0,0.00022127,2]
[355959815,1741734690528,-23179.53,0.00022191,2]
[355959816,1741734690538,-542.81,0.00022191,2]
[355959817,1741734690548,-500.0,0.00022191,2]
[355959818,1741734690558,-274.73510406,0.00022191,2]
[355959819,1741734690568,-2091.01,0.00022191,2]
[355959820,1741734690578,-13103.95,0.00022191,2]
[355959821,1741734690588,-9736.43,0.00022191,2]
[355959822,1741734690598,-794.64,0.00022191,2]
[355959823,1741734690608,-705.67,0.00022191,2]
[355959824,1741734690618,-536.16,0.00022191,2]
[355959825,1741734690628,-500.0,0.00022191,2]
[355959826,1741734690637,-500.0,0.00022191,2]
[355959827,1741734690647,-500.0,0.00022191,2]
[355959828,1741734690657,-576.66,0.00022191,2]
[355959829,1741734690667,-500.0,0.00022191,2]
[355959830,1741734690676,-1473.83,0.00022191,2]
[355959831,1741734690686,-570.33,0.00022191,2]
[355959832,1741734690696,-500.0,0.00022191,2]
[355959833,1741734690705,-500.0,0.00022191,2]
[355959834,1741734690715,-500.0,0.00022191,2]
[355959835,1741734690725,-505.73,0.00022191,2]
[355959836,1741734690736,-5474.57,0.00022191,2]
[355959837,1741734690747,-3769.43,0.00022191,2]
[355959838,1741734690760,-1250.48,0.00022191,2]
[355959839,1741734690770,-2486.99,0.00022191,2]
[355959840,1741734690779,-525.77,0.00022191,2]
[355959841,1741734690790,-500.0,0.00022191,2]
[355959842,1741734690801,-827.67,0.00022191,2]
[355959843,1741734690810,-601.79,0.00022191,2]
[355959844,1741734690820,-723.39,0.00022191,2]
[355959845,1741734690831,-500.0,0.00022191,2]
[355959846,1741734690842,-500.0,0.00022191,2]
[355959847,1741734690853,-500.0,0.00022191,2]
[355959848,1741734690862,-500.0,0.00022191,2]
[355959849,1741734690872,-500.0,0.00022191,2]
[355959850,1741734690882,-659.44,0.00022191,2]
[355959851,1741734690892,-500.0,0.00022191,2]
[355959852,1741734690901,-500.0,0.00022191,2]
[355959853,1741734690911,-500.0,0.00022191,2]
[355959854,1741734690921,-500.0,0.00022191,2]
[355959855,1741734690932,-1136.06,0.00022191,2]
[355959856,1741734690942,-500.0,0.00022191,2]
[355959857,1741734690952,-711.23,0.00022191,2]
[355959858,1741734690962,-500.73180396,0.00022191,2]
[355959859,1741734690972,-500.0,0.00022191,2]
[355959860,1741734690982,-710.79,0.00022191,2]
[355959861,1741734690992,-500.0,0.00022191,2]
[355959862,1741734691003,-500.0,0.00022191,2]
[355959863,1741734691013,-500.0,0.00022191,2]
[355959864,1741734691023,-1151.95,0.00022191,2]
[355959865,1741734691033,-585.52737705,0.00022191,2]
[355959866,1741734691124,-513.3,0.00022191,2]
[355959867,1741734691135,-714.14,0.00022191,2]
[355959868,1741734691144,-500.0,0.00022191,2]
[355959869,1741734691154,-621.70668962,0.00022191,2]
[355959870,1741734691163,-1290.07,0.00022191,2]
[355959871,1741734691172,-500.0,0.00022191,2]
[355959872,1741734691182,-4997.1,0.00022191,2]
[355959873,1741734691191,-500.0,0.00022191,2]
[355959874,1741734691200,-500.0,0.00022191,2]
[355959875,1741734691209,-603.41007157,0.00022191,2]
[355959876,1741734691218,-1292.35,0.00022191,2]
[355959877,1741734691228,-605.24,0.00022191,2]
[355959878,1741734691237,-1188.37,0.00022191,2]
[355959879,1741734691247,-604.97,0.00022191,2]
[355959880,1741734691257,-289.06607555,0.00022191,2]
[355959881,1741734691266,-630.73,0.00022191,2]
[355959882,1741734691276,-1994.33,0.00022191,2]
[355959883,1741734691285,-892.18,0.00022191,2]
[355959884,1741734691295,-755.13,0.00022191,2]
[355959885,1741734691305,-545.99,0.00022191,2]
[355959886,1741734691314,-1156.57,0.00022191,2]
[355959887,1741734691324,-520.62,0.00022191,2]
[355959888,1741734691334,-1451.2,0.00022191,2]
[355959889,1741734691343,-500.0,0.00022191,2]
[355959890,1741734691353,-621.0,0.00022191,2]
[355959891,1741734691363,-1784.22,0.00022191,2]
[355959892,1741734691372,-500.0,0.00022191,2]
[355959893,1741734691383,-500.0,0.00022191,2]
[355959894,1741734691393,-1214.06,0.00022191,2]
[355959895,1741734691402,-868.24,0.00022191,2]
[355959896,1741734691411,-500.0,0.00022191,2]
[355959897,1741734691421,-1227.37,0.00022191,2]
[355959898,1741734691432,-728.17,0.00022191,2]
[355959899,1741734691441,-1170.42,0.00022191,2]
[355959900,1741734691451,-5008.44,0.00022191,2]
[355959901,1741734691460,-500.0,0.00022191,2]
[355959902,1741734691469,-1568.17,0.00022191,2]
[355959903,1741734691479,-751.65,0.00022191,2]
[355959904,1741734691489,-500.0,0.00022191,2]
[355959905,1741734691498,-595.41,0.00022191,2]
[355959906,1741734691509,-1467.72,0.00022191,2]
[355959907,1741734691519,-653.8,0.00022191,2]
[355959908,1741734691529,-4529.09,0.00022191,2]
[355959909,1741734691538,-478.35189182,0.00022191,2]
[355959910,1741734691547,-310.2706133,0.00022191,7]
[355959911,1741734691556,-500.0,0.00022191,2]
[355959912,1741734691566,-500.0,0.00022191,2]
[355959913,1741734691576,-1488.91,0.00022191,2]
[355959914,1741734691585,-621.67,0.00022191,2]
[355959915,1741734691595,-2429.43,0.00022191,2]
[355959916,1741734691604,-920.31,0.00022191,2]
[355959917,1741734691613,-957.86,0.00022191,2]
[355959918,1741734691623,-1110.2,0.00022191,2]
[355959919,1741734691632,-544.11,0.00022191,2]
[355959920,1741734691642,-500.0,0.00022191,2]
[355959921,1741734691652,-952.07,0.00022191,2]
[355959922,1741734691663,-576.21,0.00022191,2]
[355959923,1741734691674,-738.24,0.00022191,2]
[355959924,1741734691684,-9999.0,0.00022191,2]
[355959925,1741734691694,-853.84,0.00022191,2]
[355959926,1741734691703,-500.0,0.00022191,2]
[355959927,1741734691712,-544.34,0.00022191,2]
[355959928,1741734691722,-500.0,0.00022191,2]
[355959929,1741734691732,-567.94139917,0.00022191,2]
[355959930,1741734691742,-500.0,0.00022191,2]
[355959931,1741734691754,-677.1,0.00022191,2]
[355959932,1741734691764,-4842.64,0.00022191,2]
[355959933,1741734691774,-500.0,0.00022191,2]
[355959934,1741734691784,-500.0,0.00022191,2]
[355959935,1741734691794,-518.91,0.00022191,2]
[355959936,1741734691804,-4054.19,0.00022191,2]
[355959937,1741734691814,-866.55,0.00022191,2]
[355959938,1741734691829,-3046.16,0.00022191,2]
[355959939,1741734691841,-500.0,0.00022191,2]
[355959940,1741734691851,-150.0,0.00022192,2]
[355959941,1741734691860,-296.7,0.000222,2]
[355959942,1741734691871,-1142.28,0.00022302,2]
[355959943,1741734691880,-3772.17,0.00022302,2]
[355959944,1741734691890,-163381.79,0.00022302,2]
[355959945,1741734691900,-2671.58,0.00022302,2]
[355959946,1741734691909,-863.38,0.00022302,2]
[355959947,1741734691919,-5706.05,0.00022302,2]
[355959948,1741734691929,-170.71685238,0.00022302,2]
[355959949,1741734691938,-664.48,0.00022302,2]
[355959950,1741734691948,-500.0,0.00022302,2]
[355959951,1741734691957,-3577.81,0.00022302,2]
[355959952,1741734691966,-909.63,0.00022305,2]
[355959953,1741734691976,-500.0,0.00022305,2]
[355959954,1741734691986,-1219.12,0.00022305,2]
[355959955,1741734691996,-441.35416636,0.00022305,2]
[355959956,1741734692006,-500.0,0.00022305,2]
[355959957,1741734692017,-735.93,0.00022305,2]
[355959958,1741734692026,-613.95,0.00022305,2]
[355959959,1741734692039,-500.0,0.00022305,2]
[355959960,1741734692048,-500.0,0.00022305,2]
[355959961,1741734692058,-617.74,0.00022305,2]
[355959962,1741734692068,-500.0,0.00022305,2]
[355959963,1741734692078,-1157.79,0.00022305,2]
[355959964,1741734692088,-610.48,0.00022305,2]
[355959965,1741734692099,-199.30464879,0.00022305,2]
[355959966,1741734692109,-547.18,0.00022305,2]
[355959967,1741734692124,-500.0,0.00022305,2]
[355959968,1741734692133,-1437.26,0.00022305,2]
[355959969,1741734692143,-500.0,0.00022305,2]
[355959970,1741734692153,-559.53,0.00022305,2]
[355959971,1741734692162,-1184.99,0.00022305,2]
[355959972,1741734692173,-541.3,0.00022305,2]
[355959973,1741734692182,-500.0,0.00022305,2]
[355959974,1741734692191,-500.0,0.00022305,2]
[355959975,1741734692201,-500.0,0.00022305,2]
[355959976,1741734692211,-500.0,0.00022305,2]
[355959977,1741734692221,-500.0,0.00022305,2]
[355959978,1741734692230,-500.0,0.00022305,2]
[355959979,1741734692240,-1059.92,0.00022305,2]
[355959980,1741734692249,-570.27229499,0.00022305,2]
[355959981,1741734692259,-677.01,0.00022305,2]
[355959982,1741734692269,-1053.17,0.00022305,2]
[355959983,1741734692279,-1149.09,0.00022305,2]
[355959984,1741734692288,-2390.45,0.00022305,2]
[355959985,1741734692297,-673.04,0.00022305,2]
[355959986,1741734692306,-500.0,0.00022305,2]
[355959987,1741734692316,-500.0,0.00022305,2]
[355959988,1741734692325,-1109.37,0.00022305,2]
[355959989,1741734692335,-1057.29,0.00022305,2]